Cogmind - Beta 16 @@@ ROGUE MODE // 2026.01.05 @ 23:57:42 Player: Bity Result: Destroyed by P-60 Hacker with Shock Rifle Performance ------------- Evolutions (3) 1500 Regions Visited (6) 1200 Robots Destroyed (89) 445 Value Destroyed (2458) 2458 Prototype IDs (4) 80 Alien Tech Used (0) 0 Bonus (239) 239 TOTAL SCORE: 5922 Bonus ------- Follower Combat Kills 239 Cogmind --------- Core Integrity 0/700 Matter 165/300 Energy 26/100 System Corruption 12% Temperature Cool (0) Movement Core (800) Ox15 Location -7/Factory Parts ------- > --- POWER (1) -------- (None) > --- PROPULSION (4) --- (None) > --- UTILITY (6) ------ High-capacity Storage Unit Modified TNC Weapon Cycler > --- WEAPON (2) ------- Mini Assault Cannon Makeshift Hammer > --- INVENTORY (20) --- Xenon Bombardment Thruster Advanced Weight Redist. System Advanced Weight Redist. System Recalibrator Shock Rifle Shock Rifle Heavy Laser Improved EM Pulse Cannon Autogun Improved Datajack Peak State ------------ > --- POWER ------------ Heavy Deuterium Engine > --- PROPULSION ------- Improved Titanium Leg Improved Titanium Leg Improved Titanium Leg Improved Titanium Leg > --- UTILITY ---------- Advanced Heat Sink High-capacity Storage Unit Modified TNC Weapon Cycler ECM Suite Dynamic Insulation System > --- WEAPON ----------- Cooled Particle Cannon Cooled Particle Cannon > --- INVENTORY -------- Light Nuclear Core Titanium Leg Titanium Leg Improved Carbon-fiber Leg Wheel Cesium-ion Thruster Surge Thruster Xenon Bombardment Thruster Advanced Weight Redist. System Advanced Weight Redist. System Transmission Jammer Recalibrator Shock Rifle Heavy Laser Improved EM Pulse Cannon Cooled Particle Cannon Autogun Mini Assault Cannon Improved Datajack Makeshift Hammer [Rating: 58] Favorites ----------- Power Ion Engine Engine Ion Engine Power Core Light Nuclear Core Propulsion Aluminum Leg Leg Aluminum Leg Wheel Wheel Flight Unit Cesium-ion Thruster Utility High-capacity Storage Unit Device Weight Redist. System Storage High-capacity Storage Unit Processor Modified TNC Weapon Assault Rifle Energy Gun Medium Laser Energy Cannon Cooled Particle Cannon Ballistic Gun Assault Rifle Ballistic Cannon Mini Assault Cannon Launcher Heavy Rocket Launcher Special Weapon Mining Laser Impact Weapon Makeshift Hammer Slashing Weapon Mining Claw Build | -11 -10 -10 -10 -9 -8 -7 ------- Run | Yrd Mat Min Exi Min Mat Fac Slots Evolved 6 | . . . . . 4 2 Power . | . . . . . . . Propulsion 2 | . . . . . 2 . Utility 4 | . . . . . 2 2 Weapon . | . . . . . . . Parts Attached 69 | 1 11 . 2 2 23 30 Power 11 | . 1 . . . 5 5 Engine 4 | . 1 . . . 2 1 Core 7 | . . . . . 3 4 Reactor . | . . . . . . . Propulsion 23 | . 2 . . 2 9 10 Treads . | . . . . . . . Leg 20 | . 2 . . 2 9 7 Wheel 1 | . . . . . . 1 Hover . | . . . . . . . Flight 2 | . . . . . . 2 Utility 13 | 1 2 . 1 . 4 5 Device 10 | 1 1 . . . 3 5 Storage 1 | . 1 . . . . . Processor 2 | . . . 1 . 1 . Hackware . | . . . . . . . Protection . | . . . . . . . Artifact . | . . . . . . . Weapon 22 | . 6 . 1 . 5 10 Energy Gun 1 | . . . . . 1 . Energy Cannon 3 | . . . . . . 3 Ballistic Gun 10 | . 4 . . . 4 2 Ballistic Cannon 3 | . . . . . . 3 Launcher 2 | . . . . . . 2 Special Weapon 1 | . 1 . . . . . Impact Weapon 1 | . . . 1 . . . Slashing Weapon 1 | . 1 . . . . . Piercing Weapon . | . . . . . . . Special Melee Weapon . | . . . . . . . Unidentified Prototypes 4 | . . . 1 . . 3 Parts Lost 31 | . 3 . . . 2 26 Power 6 | . 1 . . . 2 3 Propulsion 12 | . . . . . . 12 Utility 5 | . . . . . . 5 Weapon 8 | . 2 . . . . 6 Highest Loss Streak 19 | . 2 . . . 1 19 To Critical Strikes . | . . . . . . . Average Backups 18 | 6 16 19 19 20 19 19 Power 1 | 1 . 1 2 2 1 1 Propulsion 7 | 4 7 8 7 7 7 7 Utility 6 | . 5 5 7 8 5 4 Weapon 3 | 1 2 3 3 3 4 5 Tool/Special . | . . . . . . . Unused Backups 32 | . 6 2 1 . 7 16 Power 4 | . . . . . 3 1 Propulsion 9 | . . 1 1 . 2 5 Utility 9 | . 3 1 . . 1 4 Weapon 9 | . 3 . . . 1 5 Tool/Special 1 | . . . . . . 1 Average Slot Usage (%) 98 | . 99 100 100 100 99 94 Engine 10 | . 14 14 14 14 6 2 Core 1 | . . . . . 2 3 Leg 29 | . 28 28 28 28 35 28 Device 10 | . 14 14 3 . 9 24 Storage 12 | . 14 14 14 14 9 7 Processor 8 | . . . 10 14 17 9 Ballistic Gun 14 | . 19 14 14 14 15 5 Impact Weapon 3 | . . . 5 14 2 1 Slashing Weapon 4 | . 5 14 8 . . . Peak Build Rating 58 | 7 10 10 17 17 43 58 Average Rating 22 | 6 9 9 14 17 36 51 On Entrance 15 | 6 7 9 9 17 17 43 Avg Prop Armor Cover (%) . | . . . . . . . Naked Turns . | . . . . . . . Heaviest Build 71 | 12 49 49 50 50 57 71 Greatest Support 87 | 20 26 26 26 20 81 87 Greatest Overweight (x) 2 | . 1 1 2 2 1 2 Average Overweight (x) . | . . 1 1 2 . . Largest Inventory Capacity 20 | 8 20 20 20 20 20 20 Average Capacity 19 | 8 18 20 20 20 20 20 Most Carried 20 | 7 20 20 20 20 20 20 Average Carried 18 | 6 16 19 19 20 19 19 Final Capacity 20 | 8 20 20 20 20 20 20 Final Carried 20 | 7 19 18 20 20 19 10 Class Distribution -------------------- 61% | Mutant 35% | Commander-Mutant Dominant Class ---------------- Mutant | -10/Materials Mutant | -10/Mines Commander-Mutant | -10/Exiles Commander-Mutant | -9/Mines Mutant | -8/Materials Mutant | -7/Factory Resources | -11 -10 -10 -10 -9 -8 -7 ----------- Run | Yrd Mat Min Exi Min Mat Fac Matter Collected 2204 | 217 479 15 20 62 667 744 Remotely . | . . . . . . . Salvage Created 3135 | 158 718 44 . 23 787 1405 Parts 173 | 9 45 4 . 4 49 62 Haulers Intercepted 6 | . 2 . . . 2 2 Recyclers Shooed 7 | . 2 . . 2 1 2 Parts Field Recycled . | . . . . . . . Retrieved Matter . | . . . . . . . Parts Self-Destructed . | . . . . . . . Prevented . | . . . . . . . Parts Restored . | . . . . . . . Kills | -11 -10 -10 -10 -9 -8 -7 ------- Run | Yrd Mat Min Exi Min Mat Fac Combat Hostiles Destroyed 54 | . 12 . . 2 16 24 Melee 1 | . . . . . 1 . Guns 34 | . 12 . . 1 15 6 Cannons 15 | . . . . . . 15 AOE 2 | . . . . . . 2 Classes Destroyed 16 | 2 5 1 . . 2 6 Worker 5 | . . . . . 1 4 Builder 2 | . . 1 . . . 1 Tunneler 6 | 4 1 1 . . . . Hauler 6 | . 2 . . . 2 2 Recycler 8 | 1 1 . . . 1 5 Mechanic 1 | . . . . . . 1 Operator 1 | . 1 . . . . . Watcher 6 | . 3 . . . 2 1 Swarmer 15 | . 3 . . 2 4 6 Grunt 23 | . 9 . . . 8 6 Brawler 2 | . . . . . . 2 Duelist 1 | . . . . . . 1 Sentry 5 | . . . . . 4 1 Specialist 1 | . . . . . . 1 Hunter 3 | . . . . . . 3 Programmer 4 | . . . . . . 4 Best Kill Streak 7 | 2 3 1 . 1 6 7 Combat Bots Only 6 | . 3 . . 1 6 4 Max Kills in Single Turn 3 | 1 1 1 . 1 3 2 Gunslinging . | . . . . . . . Exploded 1 | . . . . . . 1 Melee 1 | . . . . . 1 . Uniques/NPCs Destroyed . | . . . . . . . Combat | -11 -10 -10 -10 -9 -8 -7 -------- Run | Yrd Mat Min Exi Min Mat Fac Hostile Shots Fired 543 | . 89 5 . 11 79 359 Missed 161 | . 27 . . 2 18 114 Hits 382 | . 62 5 . 9 61 245 Melee 9 | . . . . . . 9 Projectile 373 | . 62 5 . 9 61 236 Critical Strikes 15 | . . . . . 4 11 Damage Taken 5473 | . 675 44 . 105 880 3769 Core 902 | . 117 8 . 17 52 708 Absorbed by Shields . | . . . . . . . Core Remaining (%) 77 | 100 . . . 43 90 . Volleys Fired 268 | 9 76 5 . 14 59 105 Largest 2 | 2 2 1 . 1 2 2 Hottest 120 | 70 120 20 . 20 56 80 Shots Fired 446 | 18 131 5 . 14 102 176 Gun 312 | 18 129 5 . 14 102 44 Cannon 125 | . . . . . . 125 Launcher 7 | . . . . . . 7 Special 2 | . 2 . . . . . Kinetic 343 | 9 128 5 . 14 102 85 Thermal 96 | 9 3 . . . . 84 Explosive 7 | . . . . . . 7 Electromagnetic . | . . . . . . . Robot Hit Streak 19 | 4 10 3 . 5 14 19 Robot Miss Streak 11 | 3 3 2 . 3 11 4 Penetration Max 1 | . . . . . . 1 Secondary Targets 2 | . 2 . . . . . Max Gunslinging Chain 1 | . 1 . . . . . Shots Hit Robots 319 | 8 86 6 . 10 78 131 Core Hits 188 | 8 35 2 . 2 76 65 Critical Kills 2 | . 1 . . . . 1 Critical Parts Destroyed . | . . . . . . . Critical Strikes 5 | 1 1 . . . . 3 Burn 1 | 1 . . . . . . Meltdown 1 | . . . . . . 1 Destroy 2 | . 1 . . . . 1 Blast 1 | . . . . . . 1 Melee Attacks 28 | . 4 4 . 2 2 16 Impact 20 | . . . . 2 2 16 Slashing 8 | . 4 4 . . . . Piercing . | . . . . . . . Sneak Attacks 10 | . 2 3 . 1 1 3 Combat Hostiles . | . . . . . . . Follow-up Attacks . | . . . . . . . Damage Inflicted 7644 | 115 1171 140 . 256 1337 4625 Guns 3197 | 115 1053 40 . 99 1239 651 Cannons 2494 | . . . . . . 2494 Explosions 1010 | . . . . . . 1010 Melee 943 | . 118 100 . 157 98 470 Ramming . | . . . . . . . Kinetic 3765 | 27 1053 40 . 99 1239 1307 Thermal 1926 | 88 . . . . . 1838 Explosive 1010 | . . . . . . 1010 Electromagnetic . | . . . . . . . Impact 725 | . . . . 157 98 470 Slashing 218 | . 118 100 . . . . Piercing . | . . . . . . . Highest Corruption 12 | . . . . . . 12 Average Corruption 6 | . . . . . . 6 Corruption Purged . | . . . . . . . Corruption Blocked . | . . . . . . . Effects 25 | . . . . . . 25 Message Errors 7 | . . . . . . 7 Matter Fused 7 | . . . . . . 7 Heat Flow Errors 1 | . . . . . . 1 Energy Discharges 3 | . . . . . . 3 Data Loss (minor) 2 | . . . . . . 2 Data Loss (major) 2 | . . . . . . 2 Misfires 1 | . . . . . . 1 Weapon Failures 2 | . . . . . . 2 Overload Shots . | . . . . . . . Overflow Damage 491 | . 30 . . 124 38 299 Projectiles 146 | . . . . . . 146 Explosions 19 | . . . . . . 19 Melee 326 | . 30 . . 124 38 134 Knockbacks 7 | . . . . 1 . 6 Impact 3 | . . . . 1 . 2 Kinetic 4 | . . . . . . 4 Secondary . | . . . . . . . Self-Inflicted Damage 118 | . . . . . . 118 Shots 4 | . . . . . . 4 Rammed . | . . . . . . . Targets Rammed . | . . . . . . . Kicked . | . . . . . . . Crushed . | . . . . . . . Highest Temperature 245 | 70 40 . . . 21 245 Average Temperature 27 | 26 11 . . . 7 33 Received Heat Transfer 1128 | . 336 . . 18 360 414 Siege Activations . | . . . . . . . Martial Activations . | . . . . . . . Shielding Activations . | . . . . . . . Robots Disrupted . | . . . . . . . Combat Hostiles . | . . . . . . . Robots Corrupted 4 | . . . . 1 1 2 Combat Hostiles 1 | . . . . 1 . . Parts Fried 5 | . . . . 1 2 2 Impact Corruptions 7 | . . . . 2 1 4 Robots Melted 1 | . . . . . . 1 Combat Hostiles 1 | . . . . . . 1 Parts Melted 4 | 1 . . . . . 3 Heat Transferred 2591 | 333 . . . . . 2258 Parts Sabotaged . | . . . . . . . Parts Stolen . | . . . . . . . Parts Stripped . | . . . . . . . Power Chain Reactions . | . . . . . . . Alert | -11 -10 -10 -10 -9 -8 -7 ------- Run | Yrd Mat Min Exi Min Mat Fac Maximum Alert Level 1 | . . . . . 1 1 Low Security (%) 90 | 100 100 100 . 100 96 55 Level 1 9 | . . . . . 3 44 Level 2 . | . . . . . . . Level 3 . | . . . . . . . Level 4 . | . . . . . . . Level 5 . | . . . . . . . High Security . | . . . . . . . Max Security . | . . . . . . . Peak Influence 308 | 10 103 36 . 182 225 308 Initial 98 | . . . . . 39 98 Average 56 | 2 31 2 . 59 33 156 Influence Increases 2368 | 25 415 61 . 421 586 860 Destroy 0b10 Robot/C 1420 | . 240 40 . 300 360 480 Destroy 0b10 Robot/NC 175 | 25 40 10 . . 30 70 Destroy Leader 274 | . 50 . . 40 88 96 Allied During Kill 78 | . . 4 . 66 8 . Successful Hack 71 | . 25 7 . . 39 . Disable Machine 135 | . 15 . . . . 120 Destroy Structure 65 | . . . . . 1 64 Partial Spotted 15 | . . . . . 15 . Lose Combat Pursuer 135 | . 45 . . 15 45 30 Influence Decreases 2258 | 25 415 61 . 320 470 967 Entered New Map 181 | . . . . . 62 119 Time Decay 1562 | 25 385 61 . 280 373 438 Lost Part 300 | . 30 . . . 10 260 Lost Ally 65 | . . . . 40 25 . Purge Threat 150 | . . . . . . 150 Squads Dispatched 15 | . 2 . . . 5 8 Investigation 3 | . 1 . . . 2 . Extermination 2 | . . . . . . 2 Reinforcement 7 | . 1 . . . 3 3 Assault . | . . . . . . . Garrison 3 | . . . . . . 3 Intercept . | . . . . . . . Searches Triggered . | . . . . . . . Construction Impeded . | . . . . . . . Haulers Reinforced 2 | . . . . . . 2 Active Scanning Responses . | . . . . . . . Cargo Convoy Interrupts 1 | . . . . . . 1 Stealth | -11 -10 -10 -10 -9 -8 -7 --------- Run | Yrd Mat Min Exi Min Mat Fac Distress Signals 3 | . . . . . 3 . Communications Jammed 4 | . . . . . . 4 Distress Signals 4 | . . . . . . 4 Times Spotted 123 | . 24 3 . 10 31 55 Peak Tracking Total 10 | . 5 2 . 3 9 10 Tactical Retreats 12 | . 2 . . 1 3 6 ECM-based Alert Blocks 11 | . . . . . . 11 Traps | -11 -10 -10 -10 -9 -8 -7 ------- Run | Yrd Mat Min Exi Min Mat Fac Traps Triggered . | . . . . . . . Indirectly . | . . . . . . . Trap Hack Attempts . | . . . . . . . Triggered . | . . . . . . . Disarmed . | . . . . . . . Reprogrammed . | . . . . . . . Reused . | . . . . . . . Traps Extracted . | . . . . . . . Installed . | . . . . . . . Triggered . | . . . . . . . Machines | -11 -10 -10 -10 -9 -8 -7 ---------- Run | Yrd Mat Min Exi Min Mat Fac Machines Disabled 9 | . 1 . . . . 8 Max in Single Turn 1 | . 1 . . . . 1 Machines Repaired . | . . . . . . . Machines Dismantled . | . . . . . . . Machines Sabotaged . | . . . . . . . Overloaded Fab Kills . | . . . . . . . Hacking | -11 -10 -10 -10 -9 -8 -7 --------- Run | Yrd Mat Min Exi Min Mat Fac Machines Accessed 20 | . 6 1 2 . 8 3 Terminals 15 | . 6 1 . . 7 1 Fabricators 1 | . . . . . . 1 Repair Stations . | . . . . . . . Recycling Units 1 | . . . . . . 1 Scanalyzers 1 | . . . . . 1 . Garrison Access . | . . . . . . . Total Hacks 69 | . 21 4 17 . 22 5 Successful 43 | . 13 2 17 . 8 3 Failed 26 | . 8 2 . . 14 2 Catastrophic 6 | . 3 1 . . 2 . Database Lockouts . | . . . . . . . Manual 30 | . 15 3 1 . 11 . Terminals 46 | . 21 4 . . 19 2 Fabricators 1 | . . . . . . 1 Repair Stations . | . . . . . . . Recycling Units 2 | . . . . . . 2 Scanalyzers 3 | . . . . . 3 . Garrison Access . | . . . . . . . Terminal Hacks 32 | . 7 2 17 . 5 1 Record 20 | . 3 . 17 . . . Branch Access Points 3 | . 1 1 . . 1 . Terminal Index 1 | . 1 . . . . . Scanalyzer Index 1 | . 1 . . . . . Unreport Threat 2 | . . . . . 1 1 Locate Traps 2 | . . . . . 2 . Recall Investigation 1 | . . . . . 1 . Zone Layout 2 | . 1 1 . . . . Fabricator Hacks 1 | . . . . . . 1 Network Status 1 | . . . . . . 1 Repair Station Hacks . | . . . . . . . Recycling Unit Hacks 1 | . . . . . . 1 Report Inventory 1 | . . . . . . 1 Scanalyzer 1 | . . . . . 1 . Retrieve Study 1 | . . . . . 1 . Garrison Access Hacks . | . . . . . . . Unauthorized Hacks 8 | . 6 . . . 2 . Terminals 8 | . 6 . . . 2 . Assimilate 1 | . 1 . . . . . Botnet 6 | . 4 . . . 2 . Operators 1 | . 1 . . . . . Fabricators . | . . . . . . . Repair Stations . | . . . . . . . Recycling Units . | . . . . . . . Scanalyzers . | . . . . . . . Garrison Access . | . . . . . . . Data Cores Recovered . | . . . . . . . Used . | . . . . . . . Hacking Detections 17 | . 6 1 . . 8 2 Full Trace Events 4 | . 1 . . . 3 . Feedback Events . | . . . . . . . Feedback Blocked . | . . . . . . . Robot Schematics Acquired . | . . . . . . . Robots Built . | . . . . . . . Authchips . | . . . . . . . Time . | . . . . . . . Total Robot Build Rating . | . . . . . . . Part Schematics Acquired . | . . . . . . . Parts Built . | . . . . . . . Authchips . | . . . . . . . Time . | . . . . . . . Total Part Build Rating . | . . . . . . . Part Studies Acquired 1 | . . . . . 1 . Parts Repaired . | . . . . . . . Time . | . . . . . . . Parts Recycled . | . . . . . . . Recycled Matter . | . . . . . . . Retrieved Matter . | . . . . . . . Retrieved Components . | . . . . . . . Parts Scanalyzed . | . . . . . . . Part Schematics Acquired . | . . . . . . . Parts Damaged . | . . . . . . . Bothacking | -11 -10 -10 -10 -9 -8 -7 ------------ Run | Yrd Mat Min Exi Min Mat Fac Used RIF Installer . | . . . . . . . Robots Hacked . | . . . . . . . Non-combat . | . . . . . . . Combat . | . . . . . . . Robot Hacks Applied . | . . . . . . . Relay Couplers Released . | . . . . . . . Fabnet Peak Effective % . | . . . . . . . Robots Rewired 3 | . . . 3 . . . Allies Hacked . | . . . . . . . Hacks Repelled . | . . . . . . . Allies | -11 -10 -10 -10 -9 -8 -7 -------- Run | Yrd Mat Min Exi Min Mat Fac Total Allies 7 | . 1 3 3 . . . Largest Group 6 | . 1 4 6 6 4 . Highest-Rated Group 71 | . 10 50 71 71 47 . Highest-Rated Ally 21 | . 10 16 21 21 21 . Total Orders . | . . . . . . . Ally Attacks 54 | . . 11 . 32 11 . Total Damage 710 | . . 96 . 451 163 . Kills 17 | . . 2 . 13 2 . Allies Corrupted . | . . . . . . . Allies Melted . | . . . . . . . Intel | -11 -10 -10 -10 -9 -8 -7 ------- Run | Yrd Mat Min Exi Min Mat Fac Active Infowar (turns) 5240 | 36 259 . 1235 1078 1352 1280 Seismic 295 | 36 259 . . . . . T.N.C. 4945 | . . . 1235 1078 1352 1280 Jamming 36 | . . . . . . 36 ECM 289 | . . . . . . 289 Robot Analysis Total . | . . . . . . . Derelict Logs Recovered 3 | . . 1 . 2 . . Drone Launches . | . . . . . . . Drone Recoveries . | . . . . . . . Exploration | -11 -10 -10 -10 -9 -8 -7 ------------- Run | Yrd Mat Min Exi Min Mat Fac Turns Passed 8100 | 109 1675 963 1641 1078 1354 1280 Spaces Moved 3907 | 43 727 490 669 394 854 730 Core . | . . . . . . . Treads . | . . . . . . . Legs 3907 | 43 727 490 669 394 854 730 Wheels . | . . . . . . . Hover . | . . . . . . . Flight . | . . . . . . . Fastest Speed 105 | 120 120 190 190 260 105 105 Average Speed 174 | 120 175 190 239 260 123 119 Slowest Speed 260 | 120 190 190 260 260 190 260 Overloaded Moves . | . . . . . . . Propulsion Burnouts . | . . . . . . . Robots Hopped . | . . . . . . . Potential Cave-ins . | . . . . . . . Cave-ins Triggered . | . . . . . . . Exploration Rate (%) 62 | 3 97 82 93 76 65 20 Regions Visited 6 Branch Regions 3 Pre-discovered Areas 2 | . . . . 2 . . Known Exits Taken 3 | . 1 . . 1 1 . Unknown Exits Taken 3 | 1 . 1 1 . . . Scrap Searched 2 | . . 1 . 1 . . Spaces Dug 1 | . . . . . . 1 Terrain Destroyed 64 | . . . . . . 64 Melee 1 | . . . . . . 1 Projectile 4 | . . . . . . 4 AOE 59 | . . . . . . 59 Terrain Rammed . | . . . . . . . Walls Destroyed . | . . . . . . . Machines Disabled . | . . . . . . . Actions | -11 -10 -10 -10 -9 -8 -7 --------- Run | Yrd Mat Min Exi Min Mat Fac Total 4778 | 83 985 510 708 434 1073 985 Wait 348 | 30 145 10 3 21 80 59 Move 3901 | 42 726 489 668 393 853 730 Hop . | . . . . . . . Pick Up 61 | 1 17 . 3 . 23 17 Fast Attach 8 | 1 . . . . . 7 Attach 26 | . 3 . . . 6 17 Detach 1 | . . . . . . 1 Swap 49 | . 8 . 2 2 19 18 Drop 57 | . 6 2 1 2 31 15 Fire 268 | 9 76 5 . 14 59 105 Melee 28 | . 4 4 . 2 2 16 Ram . | . . . . . . . Kick . | . . . . . . . Crush . | . . . . . . . Escape Stasis . | . . . . . . . Rewire 31 | . . . 31 . . . Trap . | . . . . . . . Miscellaneous . | . . . . . . . Route ------- -11/Scrapyard -10/Materials (discovered 5 exits: [*Mat x3] / *Min / *Sub) -10/Mines (discovered 4 exits: [*Mat x2] / *Exi / *Sub) -10/Exiles (discovered 2 exits: [*Min x2]) -9/Mines (discovered 2 exits: *Mat x2) -8/Materials -7/Factory History --------- Turn | Location | Event 1 | -11/Scrapyard | Discovered new exit (range 3) 110 | -11/Scrapyard | Entered Materials 300 | -10/Materials | Build established: Mutant 395 | -10/Materials | Discovered new exit (range 13) 1109 | -10/Materials | Discovered new exit (range 8) 1251 | -10/Materials | Discovered new exit (range 15) 1346 | -10/Materials | Discovered new exit (range 16) 1470 | -10/Materials | Identified exit to Mines 1709 | -10/Materials | Discovered new exit (range 8) 1785 | -10/Materials | Entered Mines 1785 | -10/Mines | Accompanied by 1 ally 2092 | -10/Mines | Discovered new exit (range 13) 2116 | -10/Mines | Discovered new exit (range 5) 2156 | -10/Mines | Assisted by bots powering up and referring to "LRC-V3" 2291 | -10/Mines | Found a hidden stash of uninstalled traps 2387 | -10/Mines | Identified exit to Subcaves 2451 | -10/Mines | Found a damaged Exp. Sensor Array with a note attached 2587 | -10/Mines | Deemed a non-threat by the Exiles lab entrance 2589 | -10/Mines | Discovered new exit (range 5) 2748 | -10/Mines | Entered Exiles 2748 | -10/Exiles | Found Exiles lab destroyed 2748 | -10/Exiles | Accompanied by 3 allies 3144 | -10/Exiles | Opened EX-Vault 3153 | -10/Exiles | Found Prototype Processor 3154 | -10/Exiles | Identified Modified TNC 3175 | -10/Exiles | Build established: Commander-Mutant 4030 | -10/Exiles | Discovered new exit (range 11) 4345 | -10/Exiles | Discovered new exit (range 15) 4389 | -10/Exiles | Entered Mines 4389 | -9/Mines | Accompanied by 6 allies 4418 | -9/Mines | Core integrity fell below 50% 4524 | -9/Mines | Identified exit to Materials 4993 | -9/Mines | Learned location of Storage (-9) 5286 | -9/Mines | Learned location of Recycling (-9) 5428 | -9/Mines | Discovered exit to Materials (range 11) 5467 | -9/Mines | Entered Materials 5467 | -8/Materials | Accompanied by 4 allies 5467 | -8/Materials | Evolved 4 slots: Propulsion x2, Utility x2 5994 | -8/Materials | Discovered new exit (range 15) 6215 | -8/Materials | Build established: Mutant 6818 | -8/Materials | Identified exit to Factory 6821 | -8/Materials | Entered Factory 6821 | -7/Factory | Evolved 2 slots: Utility x2 7123 | -7/Factory | Garrison activated, responded to threat 7798 | -7/Factory | Lost 3 parts (2n1u) 8034 | -7/Factory | Cargo convoy interrupted 8049 | -7/Factory | System corruption reached 10% 8060 | -7/Factory | Core integrity fell below 50% 8087 | -7/Factory | Core integrity fell below 20% 8101 | -7/Factory | Destroyed by P-60 Hacker with Shock Rifle Last Messages --------------- 08096_ K-01 Serf destroyed. 08096_ H-55 Commando Gauss Rifle blasted off. 08096_ U-05 Engineer lays Concrete. 08096_ M-28 Smith repairs U-05 Engineer Terrain Scanner. 08097_ Penetrated by Slug. 08097_ R-06 Scavenger collects Sml. Matter Pod. 08098_ U-05 Engineer lays Concrete. 08098_ Destroyed Gravmag System. 08098_ P-60 Hacker knocked back. 08098_ Cesium-ion Thruster destroyed. 08099_ U-05 Engineer lays Concrete. 08099_ U-05 Engineer builds a Wall. 08099_ Penetrated by Slug. 08100_ K-01 Serf collects debris. 08100_ P-60 Hacker resets H-55 Commando, system corruption cleaned. 08100_ Penetrated by Slug. 08100_ U-05 Engineer lays Concrete. 08100_ R-06 Scavenger collects Wheel. Map ----- +----------------------------------------------------+ | ???????????????????????????# [#?????????? | | ???????????????????????????# """ #?????????? | | ???????????????????????????# """ #?????????? | | ???????????????????????????# [[[ """ #?????????? | | ???????????????????????????# [[ #?????????? | | ???????????????????????????# [[ #?????????? | | ???????????????????????????# #?????????? | | ???????????????????????????#########+###???###+### | | ?????????????????????????????????# ##### | | ?????????????????????????????????# ! | | ?????????????????????????????????# " | | ?????????????????????????????????# | | ?????????????????????????????????# ##### | | ?????????????????????????###########+####### # | | ?????????????????????????# # # | | ?????????????????????????# # # | | ?????????????????????????# """ """ # # | | ???????????? ????????????# "" "" """ """ # # | | ???????????? ##?????????# ""T"" """ """ # # | | ??????????? ????????# """ # # | | ??????????? ???????# # # | | ??????????? #####################/### # | | ?????????? # | | ?????????? u % p # | | ????????? = h[ # | | ????????? %@%m! # | | ????????? r hp*= w # | | ?????????? ## # #;;###h= ####Y#####+#####+### | | ?????????????????? ?#% %%k ## ?????????????? | | ????????????????# """? + ! #? ????????????? | | ????????????????# "?? # #? "???????????? | | ????????????????? ??" # % #? "???????????? | | ??????????????????? # #? " ??????????? | | ?????????????????? # #? " "?????????? | | ????????????????? # #?? ? "?????????? | | ????????????????# ?# #?? ??"?????????? | | ????????????????#!!! ?#+###+#####?? "???????????? | | ????????????????#!! [?# ???%#?????? "???????????? | | ??????????????????! ??# ??? #?????? "???????????? | | ?????????????????? ??# ??? #??????? ???????????? | | ???????????????????? ??# ????#???????????????????? | | ???????????????????????? ????????????????????????? | | ?????????????????????????????????????????????????? | | ?????????????????????????????????????????????????? | | ?????????????????????????????????????????????????? | | ????????????????????????????A????????????????????? | | ?????????????????????????????????????????????????? | | ?????????????????????????????????????????????????? | | ?????????????????????????????????????????????????? | | ?????????????????????????????????????????????????? | +----------------------------------------------------+ Best States ------------- Heat Dissipation 53 Energy Generation 18 Energy Capacity 310 Matter Stores 300 Matter Capacity 300 Sight Range 16 Terrain Scan Density 10 ECM Strength 1 Jamming Range 12 Additional Mass Support 9 EM Shielding 2 Weapon Cycling 15 Evasion (%) 55 Item Schematics ----------------- None Robot Schematics ------------------ None Fabricated ------------ Nothing Repaired ---------- Nothing Studied --------- Imp. Carbon-fiber Leg | -8/Materials | Hacked Alien Tech Used ----------------- None Achievements -------------- Insider Info Luggage Code Challenges ------------ None Game ------ Seed ColdStealthBeacon Manual? 0 Play Time 00:49:44 Cumulative 63.8 hours Start 2026.01.05 @ 23:08:49 End 2026.01.05 @ 23:57:42 Sessions 1 Manual Loads 0 Difficulty Rogue Special Mode None Game No. 81 Rogue 81 Adventurer 0 Explorer 0 Win Type - Total 1 Types 1/0/0/0/0/0/0/0/0/0 Lore% 43 Gallery% 48 Achievement% 38 Wizard Run 0 Options --------- Layout 2 ASCII 0 Keyboard 1 Movement Numpad Keybinds 0 Fullscreen 2 Font 24/Smallcaps Map View 50x44 Zoom Use 0% Tactical HUD 1 Map Filters NONE Filters NONE Steam 1 RUN: f97fd515-bde8-4b7b-a150-dc7d4e825c75